[Event "Titled Tuesday Blitz July 25 Late 2023"]
[White "littlepinkyboy"]
[Black "Papayan, Oleg"]
[BlackFideId "4193911"]
[WhiteElo "2368"]
[BlackElo "2474"]
[Result "0-1"]
[Round "10"]
[TimeControl "180+2"]
[Date "2023.07.25"]
[WhiteClock "0:00:04"]
[BlackClock "0:00:17"]
[Board "76"]

1. Nf3 {[%clk 0:03:00]}  Nf6 {[%clk 0:02:57]} 2. g3 {[%clk 0:03:00]}  c5 {[%clk 0:02:58]} 3. Bg2 {[%clk 0:03:00]}  Nc6 {[%clk 0:02:59]} 4. O-O {[%clk 0:03:00]}  e5 {[%clk 0:02:59]} 5. c3 {[%clk 0:03:00]}  d5 {[%clk 0:03:00]} 6. d4 {[%clk 0:03:00]}  e4 {[%clk 0:02:57]} 7. Ne5 {[%clk 0:03:00]}  Bd6 {[%clk 0:02:42]} 8. Bf4 {[%clk 0:02:36]}  O-O {[%clk 0:02:37]} 9. Nxc6 {[%clk 0:02:32]}  bxc6 {[%clk 0:02:38]} 10. Bxd6 {[%clk 0:02:33]}  Qxd6 {[%clk 0:02:38]} 11. dxc5 {[%clk 0:02:33]}  Qxc5 {[%clk 0:02:39]} 12. Nd2 {[%clk 0:02:34]}  e3 {[%clk 0:02:32]} 13. fxe3 {[%clk 0:02:27]}  Qxe3+ {[%clk 0:02:32]} 14. Kh1 {[%clk 0:02:28]}  Ng4 {[%clk 0:02:29]} 15. Qe1 {[%clk 0:02:24]}  Re8 {[%clk 0:02:21]} 16. Bf3 {[%clk 0:02:23]}  Qh6 {[%clk 0:02:02]} 17. Bxg4 {[%clk 0:02:18]}  Bxg4 {[%clk 0:02:03]} 18. Rf2 {[%clk 0:02:18]}  Re5 {[%clk 0:02:04]} 19. Nf3 {[%clk 0:02:09]}  Bxf3+ {[%clk 0:01:53]} 20. Rxf3 {[%clk 0:02:05]}  Rae8 {[%clk 0:01:54]} 21. Rf2 {[%clk 0:02:00]}  Qe6 {[%clk 0:01:54]} 22. Qg1 {[%clk 0:01:47]}  Rxe2 {[%clk 0:01:55]} 23. Raf1 {[%clk 0:01:47]}  Qe4+ {[%clk 0:01:54]} 24. Qg2 {[%clk 0:01:47]}  Rxf2 {[%clk 0:01:44]} 25. Rxf2 {[%clk 0:01:47]}  Qb1+ {[%clk 0:01:37]} 26. Rf1 {[%clk 0:01:46]}  Re1 {[%clk 0:01:38]} 27. Kg1 {[%clk 0:01:23]}  f5 {[%clk 0:01:14]} 28. Rxe1 {[%clk 0:00:56]}  Qxe1+ {[%clk 0:01:15]} 29. Qf1 {[%clk 0:00:56]}  Qxf1+ {[%clk 0:01:15]} 30. Kxf1 {[%clk 0:00:57]}  Kf7 {[%clk 0:01:16]} 31. Ke2 {[%clk 0:00:57]}  Ke6 {[%clk 0:01:16]} 32. Ke3 {[%clk 0:00:57]}  Ke5 {[%clk 0:01:17]} 33. h4 {[%clk 0:00:58]}  g6 {[%clk 0:01:17]} 34. b4 {[%clk 0:00:53]}  h6 {[%clk 0:01:15]} 35. a4 {[%clk 0:00:53]}  a6 {[%clk 0:01:09]} 36. Kf3 {[%clk 0:00:52]}  g5 {[%clk 0:01:08]} 37. h5 {[%clk 0:00:34]}  f4 {[%clk 0:00:57]} 38. g4 {[%clk 0:00:34]}  d4 {[%clk 0:00:49]} 39. c4 {[%clk 0:00:33]}  d3 {[%clk 0:00:49]} 40. a5 {[%clk 0:00:20]}  Kd6 {[%clk 0:00:30]} 41. Kf2 {[%clk 0:00:19]}  c5 {[%clk 0:00:28]} 42. b5 {[%clk 0:00:10]}  axb5 {[%clk 0:00:29]} 43. a6 {[%clk 0:00:09]}  Kc7 {[%clk 0:00:25]} 44. cxb5 {[%clk 0:00:09]}  c4 {[%clk 0:00:20]} 45. Ke1 {[%clk 0:00:08]}  c3 {[%clk 0:00:20]} 46. Kd1 {[%clk 0:00:08]}  f3 {[%clk 0:00:20]} 47. Ke1 {[%clk 0:00:09]}  c2 {[%clk 0:00:19]} 48. Kd2 {[%clk 0:00:09]}  f2 {[%clk 0:00:19]} 49. a7 {[%clk 0:00:07]}  Kb7 {[%clk 0:00:19]} 50. b6 {[%clk 0:00:06]}  f1=Q {[%clk 0:00:18]} 51. Ke3 {[%clk 0:00:03]}  c1=Q+ {[%clk 0:00:17]} 52. Kd4 {[%clk 0:00:03]}  Qff4+ {[%clk 0:00:17]} 53. Kd5 {[%clk 0:00:04]}  Qcc4# {[%clk 0:00:17]} 0-1


[Site "https://www.chess.com"]

[Event "Titled Tuesday Blitz July 25 Late 2023"]
[White "Mendez Machado, Andre"]
[Black "Vega Gutierrez, Sabrina"]
[WhiteFideId "6603793"]
[BlackFideId "2219026"]
[WhiteElo "2289"]
[BlackElo "2426"]
[Result "0-1"]
[Round "10"]
[TimeControl "180+2"]
[Date "2023.07.25"]
[WhiteClock "0:00:29"]
[BlackClock "0:02:18"]
[Board "83"]

1. e4 {[%clk 0:03:00]}  c5 {[%clk 0:02:59]} 2. Nc3 {[%clk 0:02:59]}  Nc6 {[%clk 0:02:58]} 3. Bb5 {[%clk 0:02:59]}  Nd4 {[%clk 0:02:58]} 4. Nf3 {[%clk 0:02:59]}  a6 {[%clk 0:02:58]} 5. Bd3 {[%clk 0:02:59]}  Nc6 {[%clk 0:02:58]} 6. O-O {[%clk 0:02:59]}  e6 {[%clk 0:02:56]} 7. Nd5 {[%clk 0:02:58]}  d6 {[%clk 0:02:56]} 8. Ne3 {[%clk 0:02:46]}  Nf6 {[%clk 0:02:56]} 9. c3 {[%clk 0:02:46]}  Be7 {[%clk 0:02:57]} 10. Bc2 {[%clk 0:02:46]}  O-O {[%clk 0:02:57]} 11. d4 {[%clk 0:02:46]}  cxd4 {[%clk 0:02:57]} 12. cxd4 {[%clk 0:02:47]}  d5 {[%clk 0:02:57]} 13. e5 {[%clk 0:02:48]}  Ne4 {[%clk 0:02:58]} 14. Nd2 {[%clk 0:02:39]}  Nxd2 {[%clk 0:02:50]} 15. Qxd2 {[%clk 0:02:39]}  Qb6 {[%clk 0:02:45]} 16. Qd3 {[%clk 0:02:16]}  g6 {[%clk 0:02:44]} 17. Ng4 {[%clk 0:01:47]}  Qxd4 {[%clk 0:02:38]} 18. Qh3 {[%clk 0:01:25]}  Nxe5 {[%clk 0:02:32]} 19. Nh6+ {[%clk 0:01:22]}  Kh8 {[%clk 0:02:21]} 20. Be3 {[%clk 0:00:57]}  Qh4 {[%clk 0:02:21]} 21. Bd4 {[%clk 0:00:29]}  Qxd4 {[%clk 0:02:18]} 0-1


[Site "https://www.chess.com"]

[Event "Titled Tuesday Blitz July 25 Late 2023"]
[White "EsmeraldasAnderson03"]
[Black "Chemin, Justo Reinaldo"]
[BlackFideId "2101580"]
[WhiteElo "2424"]
[BlackElo "2274"]
[Result "1-0"]
[Round "10"]
[TimeControl "180+2"]
[Date "2023.07.25"]
[WhiteClock "0:01:25"]
[BlackClock "0:00:25"]
[Board "84"]

1. d4 {[%clk 0:03:00]}  d5 {[%clk 0:02:29]} 2. Nf3 {[%clk 0:03:00]}  c6 {[%clk 0:02:26]} 3. c4 {[%clk 0:03:00]}  e6 {[%clk 0:02:26]} 4. cxd5 {[%clk 0:03:00]}  exd5 {[%clk 0:02:26]} 5. Nc3 {[%clk 0:03:01]}  Nf6 {[%clk 0:02:26]} 6. Qc2 {[%clk 0:03:02]}  Bd6 {[%clk 0:02:26]} 7. Bg5 {[%clk 0:03:02]}  h6 {[%clk 0:02:24]} 8. Bh4 {[%clk 0:03:02]}  Be6 {[%clk 0:02:21]} 9. e3 {[%clk 0:03:03]}  Nbd7 {[%clk 0:02:21]} 10. Bd3 {[%clk 0:02:57]}  Qc7 {[%clk 0:02:14]} 11. O-O {[%clk 0:02:57]}  Rc8 {[%clk 0:02:14]} 12. a3 {[%clk 0:02:50]}  a6 {[%clk 0:02:14]} 13. b4 {[%clk 0:02:50]}  b5 {[%clk 0:02:12]} 14. Ne2 {[%clk 0:02:33]}  Be7 {[%clk 0:02:06]} 15. Nc1 {[%clk 0:02:25]}  Nb6 {[%clk 0:02:06]} 16. Nb3 {[%clk 0:02:24]}  Nc4 {[%clk 0:02:04]} 17. Bg3 {[%clk 0:02:24]}  Qa7 {[%clk 0:01:55]} 18. Nc5 {[%clk 0:02:24]}  a5 {[%clk 0:01:52]} 19. Nxe6 {[%clk 0:02:22]}  fxe6 {[%clk 0:01:52]} 20. Bg6+ {[%clk 0:02:23]}  Kf8 {[%clk 0:01:52]} 21. Ne5 {[%clk 0:02:04]}  axb4 {[%clk 0:01:38]} 22. axb4 {[%clk 0:02:04]}  Qb7 {[%clk 0:01:38]} 23. Rfb1 {[%clk 0:01:53]}  Nd7 {[%clk 0:01:16]} 24. Nd3 {[%clk 0:01:42]}  Nf6 {[%clk 0:01:00]} 25. Nf4 {[%clk 0:01:41]}  Qd7 {[%clk 0:00:55]} 26. Ra6 {[%clk 0:01:36]}  e5 {[%clk 0:00:53]} 27. Bf5 {[%clk 0:01:35]}  Qb7 {[%clk 0:00:47]} 28. Bxc8 {[%clk 0:01:34]}  Qxc8 {[%clk 0:00:47]} 29. Ng6+ {[%clk 0:01:35]}  Kf7 {[%clk 0:00:46]} 30. Nxh8+ {[%clk 0:01:35]}  Qxh8 {[%clk 0:00:46]} 31. dxe5 {[%clk 0:01:34]}  Ne4 {[%clk 0:00:45]} 32. Rxc6 {[%clk 0:01:34]}  Nxg3 {[%clk 0:00:37]} 33. hxg3 {[%clk 0:01:34]}  Nxe5 {[%clk 0:00:35]} 34. Qf5+ {[%clk 0:01:28]}  Bf6 {[%clk 0:00:33]} 35. Qe6+ {[%clk 0:01:26]}  Kg6 {[%clk 0:00:33]} 36. Qxe5 {[%clk 0:01:27]}  Qa8 {[%clk 0:00:30]} 37. Qxd5 {[%clk 0:01:26]}  Qa2 {[%clk 0:00:25]} 38. Qxa2 {[%clk 0:01:25]} 1-0


[Site "https://www.chess.com"]

[Event "Titled Tuesday Blitz July 25 Late 2023"]
[White "Herman, Daniel"]
[Black "Cardozo Munar, Carlos Eduardo"]
[WhiteFideId "30935008"]
[BlackFideId "4409477"]
[WhiteElo "2417"]
[BlackElo "2271"]
[Result "1-0"]
[Round "10"]
[TimeControl "180+2"]
[Date "2023.07.25"]
[WhiteClock "0:01:00"]
[BlackClock "0:01:24"]
[Board "85"]

1. e4 {[%clk 0:03:00]}  e6 {[%clk 0:03:00]} 2. d4 {[%clk 0:03:00]}  d5 {[%clk 0:03:00]} 3. Nc3 {[%clk 0:03:00]}  Nf6 {[%clk 0:03:00]} 4. e5 {[%clk 0:03:00]}  Nfd7 {[%clk 0:03:00]} 5. f4 {[%clk 0:03:01]}  c5 {[%clk 0:03:01]} 6. Nf3 {[%clk 0:03:01]}  Nc6 {[%clk 0:03:01]} 7. Be3 {[%clk 0:03:02]}  Qb6 {[%clk 0:03:02]} 8. Na4 {[%clk 0:03:00]}  Qa5+ {[%clk 0:02:56]} 9. c3 {[%clk 0:02:55]}  b5 {[%clk 0:02:52]} 10. Nxc5 {[%clk 0:02:50]}  Nxc5 {[%clk 0:02:52]} 11. dxc5 {[%clk 0:02:50]}  b4 {[%clk 0:02:53]} 12. Qd2 {[%clk 0:02:17]}  Bxc5 {[%clk 0:02:50]} 13. Bxc5 {[%clk 0:02:16]}  Qxc5 {[%clk 0:02:49]} 14. cxb4 {[%clk 0:02:12]}  Qxb4 {[%clk 0:02:48]} 15. Rc1 {[%clk 0:02:05]}  Qxd2+ {[%clk 0:02:47]} 16. Kxd2 {[%clk 0:02:05]}  Bd7 {[%clk 0:02:47]} 17. Bb5 {[%clk 0:01:52]}  Nxe5 {[%clk 0:02:45]} 18. Nxe5 {[%clk 0:01:51]}  Bxb5 {[%clk 0:02:45]} 19. Rc7 {[%clk 0:01:51]}  O-O {[%clk 0:02:43]} 20. Rhc1 {[%clk 0:01:50]}  g6 {[%clk 0:02:38]} 21. Rb7 {[%clk 0:01:48]}  a6 {[%clk 0:02:28]} 22. Rcc7 {[%clk 0:01:46]}  Be8 {[%clk 0:02:21]} 23. b4 {[%clk 0:01:39]}  h5 {[%clk 0:02:17]} 24. Nxg6 {[%clk 0:01:35]}  Bb5 {[%clk 0:01:58]} 25. Nxf8 {[%clk 0:01:32]}  Rxf8 {[%clk 0:01:59]} 26. g3 {[%clk 0:01:26]}  Kg7 {[%clk 0:01:59]} 27. Ra7 {[%clk 0:01:23]}  Kf6 {[%clk 0:01:59]} 28. Ke3 {[%clk 0:01:22]}  Kg6 {[%clk 0:01:42]} 29. Kd4 {[%clk 0:01:21]}  f6 {[%clk 0:01:40]} 30. Rh7 {[%clk 0:01:17]}  Be2 {[%clk 0:01:38]} 31. a4 {[%clk 0:01:14]}  Rc8 {[%clk 0:01:37]} 32. Raf7 {[%clk 0:01:01]}  Rc4+ {[%clk 0:01:24]} 33. Ke3 {[%clk 0:01:01]}  Bg4 {[%clk 0:01:25]} 34. Rhg7+ {[%clk 0:01:00]}  Kf5 {[%clk 0:01:24]} 35. Rg5# {[%clk 0:01:00]} 1-0


[Site "https://www.chess.com"]

[Event "Titled Tuesday Blitz July 25 Late 2023"]
[White "Sariego Figueredo, Wilfredo"]
[Black "Willy, Stephen"]
[WhiteFideId "3500080"]
[BlackFideId "30981468"]
[WhiteElo "2265"]
[BlackElo "2412"]
[Result "0-1"]
[Round "10"]
[TimeControl "180+2"]
[Date "2023.07.25"]
[WhiteClock "0:00:28"]
[BlackClock "0:01:14"]
[Board "86"]

1. d4 {[%clk 0:02:56]}  c6 {[%clk 0:03:00]} 2. Nc3 {[%clk 0:02:53]}  b5 {[%clk 0:03:01]} 3. a3 {[%clk 0:02:52]}  d6 {[%clk 0:02:49]} 4. e4 {[%clk 0:02:52]}  Nf6 {[%clk 0:02:46]} 5. Bf4 {[%clk 0:02:41]}  Nbd7 {[%clk 0:02:42]} 6. e5 {[%clk 0:02:31]}  Nd5 {[%clk 0:02:41]} 7. Nxd5 {[%clk 0:02:24]}  cxd5 {[%clk 0:02:42]} 8. Bd3 {[%clk 0:02:17]}  dxe5 {[%clk 0:02:38]} 9. dxe5 {[%clk 0:02:16]}  e6 {[%clk 0:02:39]} 10. Nf3 {[%clk 0:02:12]}  Be7 {[%clk 0:02:33]} 11. O-O {[%clk 0:02:11]}  O-O {[%clk 0:02:33]} 12. Bxb5 {[%clk 0:02:11]}  Rb8 {[%clk 0:02:32]} 13. Bxd7 {[%clk 0:02:11]}  Bxd7 {[%clk 0:02:33]} 14. b3 {[%clk 0:02:11]}  Qc7 {[%clk 0:02:28]} 15. Nd4 {[%clk 0:02:01]}  Rfc8 {[%clk 0:02:22]} 16. Qg4 {[%clk 0:01:53]}  Qc3 {[%clk 0:02:13]} 17. Bh6 {[%clk 0:01:52]}  Bf8 {[%clk 0:02:10]} 18. Rad1 {[%clk 0:01:48]}  a5 {[%clk 0:02:05]} 19. Rd3 {[%clk 0:01:47]}  Qc5 {[%clk 0:02:04]} 20. Rg3 {[%clk 0:01:39]}  g6 {[%clk 0:02:02]} 21. Bg5 {[%clk 0:01:34]}  Bg7 {[%clk 0:02:00]} 22. Bf6 {[%clk 0:01:31]}  Qxa3 {[%clk 0:02:00]} 23. Rh3 {[%clk 0:01:27]}  Bxf6 {[%clk 0:01:51]} 24. exf6 {[%clk 0:01:26]}  Qf8 {[%clk 0:01:44]} 25. Nf3 {[%clk 0:01:24]}  Rb4 {[%clk 0:01:40]} 26. Qg5 {[%clk 0:01:19]}  Rxc2 {[%clk 0:01:34]} 27. Ne5 {[%clk 0:01:16]}  Bb5 {[%clk 0:01:31]} 28. Ra1 {[%clk 0:01:11]}  a4 {[%clk 0:01:23]} 29. bxa4 {[%clk 0:01:10]}  Rxa4 {[%clk 0:01:22]} 30. Rxa4 {[%clk 0:01:08]}  Bxa4 {[%clk 0:01:23]} 31. Rh4 {[%clk 0:00:57]}  Qc5 {[%clk 0:01:20]} 32. Nd3 {[%clk 0:00:44]}  Re2 {[%clk 0:01:15]} 33. Rxa4 {[%clk 0:00:38]}  Qxf2+ {[%clk 0:01:14]} 34. Nxf2 {[%clk 0:00:28]}  Re1# {[%clk 0:01:14]} 0-1


[Site "https://www.chess.com"]

[Event "Titled Tuesday Blitz July 25 Late 2023"]
[White "Eggleston, Thomas A"]
[Black "Winkels, Marcel"]
[WhiteFideId "412139"]
[BlackFideId "1003887"]
[WhiteElo "2407"]
[BlackElo "2087"]
[Result "0-1"]
[Round "10"]
[TimeControl "180+2"]
[Date "2023.07.25"]
[WhiteClock "0:00:03"]
[BlackClock "0:00:04"]
[Board "88"]

1. e4 {[%clk 0:03:00]}  c5 {[%clk 0:02:59]} 2. Nf3 {[%clk 0:03:01]}  e6 {[%clk 0:02:59]} 3. g3 {[%clk 0:03:00]}  Nf6 {[%clk 0:02:57]} 4. Qe2 {[%clk 0:02:58]}  d6 {[%clk 0:02:57]} 5. Bg2 {[%clk 0:02:58]}  Nc6 {[%clk 0:02:57]} 6. O-O {[%clk 0:02:57]}  Be7 {[%clk 0:02:58]} 7. c3 {[%clk 0:02:57]}  O-O {[%clk 0:02:58]} 8. d4 {[%clk 0:02:51]}  cxd4 {[%clk 0:02:53]} 9. cxd4 {[%clk 0:02:51]}  d5 {[%clk 0:02:53]} 10. e5 {[%clk 0:02:50]}  Ne4 {[%clk 0:02:53]} 11. Be3 {[%clk 0:02:50]}  Qb6 {[%clk 0:02:51]} 12. Rd1 {[%clk 0:02:43]}  Bd7 {[%clk 0:02:48]} 13. h4 {[%clk 0:02:42]}  Rfc8 {[%clk 0:02:42]} 14. Ne1 {[%clk 0:02:41]}  Nb4 {[%clk 0:02:31]} 15. a4 {[%clk 0:02:38]}  Qc6 {[%clk 0:02:18]} 16. Kh2 {[%clk 0:02:30]}  Nc2 {[%clk 0:02:13]} 17. Nxc2 {[%clk 0:02:30]}  Qxc2 {[%clk 0:02:12]} 18. Qxc2 {[%clk 0:02:16]}  Rxc2 {[%clk 0:02:10]} 19. f3 {[%clk 0:02:16]}  Nf2 {[%clk 0:02:05]} 20. Bxf2 {[%clk 0:01:42]}  Rxf2 {[%clk 0:02:04]} 21. Nd2 {[%clk 0:01:27]}  Bb4 {[%clk 0:01:49]} 22. Nf1 {[%clk 0:01:24]}  Rxb2 {[%clk 0:01:46]} 23. Rdc1 {[%clk 0:01:20]}  Bc6 {[%clk 0:01:27]} 24. Ne3 {[%clk 0:01:16]}  h6 {[%clk 0:01:18]} 25. Rc2 {[%clk 0:01:06]}  Rxc2 {[%clk 0:01:16]} 26. Nxc2 {[%clk 0:01:05]}  Ba5 {[%clk 0:01:14]} 27. Bf1 {[%clk 0:01:01]}  Rc8 {[%clk 0:01:12]} 28. Ra2 {[%clk 0:01:00]}  Bd7 {[%clk 0:01:09]} 29. Bb5 {[%clk 0:00:50]}  Bxb5 {[%clk 0:01:00]} 30. axb5 {[%clk 0:00:50]}  b6 {[%clk 0:00:57]} 31. f4 {[%clk 0:00:39]}  Rc7 {[%clk 0:00:55]} 32. Kg2 {[%clk 0:00:38]}  h5 {[%clk 0:00:53]} 33. Kf2 {[%clk 0:00:37]}  g6 {[%clk 0:00:52]} 34. Ke2 {[%clk 0:00:37]}  Kf8 {[%clk 0:00:52]} 35. Ne3 {[%clk 0:00:28]}  Rc3 {[%clk 0:00:46]} 36. Rc2 {[%clk 0:00:24]}  Rb3 {[%clk 0:00:31]} 37. Rc8+ {[%clk 0:00:23]}  Kg7 {[%clk 0:00:30]} 38. Rc7 {[%clk 0:00:23]}  Rxb5 {[%clk 0:00:29]} 39. Rxa7 {[%clk 0:00:22]}  Rb2+ {[%clk 0:00:30]} 40. Kf3 {[%clk 0:00:20]}  Rb3 {[%clk 0:00:24]} 41. Ra6 {[%clk 0:00:18]}  Bd2 {[%clk 0:00:23]} 42. Ke2 {[%clk 0:00:18]}  Bxe3 {[%clk 0:00:22]} 43. Ra4 {[%clk 0:00:17]}  Bc1 {[%clk 0:00:20]} 44. Kd1 {[%clk 0:00:14]}  Ba3 {[%clk 0:00:15]} 45. Kc2 {[%clk 0:00:14]}  Rxg3 {[%clk 0:00:15]} 46. Kd2 {[%clk 0:00:12]}  Be7 {[%clk 0:00:12]} 47. Ra6 {[%clk 0:00:12]}  Bxh4 {[%clk 0:00:10]} 48. Rxb6 {[%clk 0:00:11]}  Rf3 {[%clk 0:00:11]} 49. Ke2 {[%clk 0:00:11]}  Rxf4 {[%clk 0:00:11]} 50. Rb4 {[%clk 0:00:11]}  Re4+ {[%clk 0:00:11]} 51. Kf3 {[%clk 0:00:11]}  Bg5 {[%clk 0:00:12]} 52. Ra4 {[%clk 0:00:11]}  h4 {[%clk 0:00:12]} 53. Kg2 {[%clk 0:00:09]}  Re3 {[%clk 0:00:11]} 54. Kf2 {[%clk 0:00:08]}  h3 {[%clk 0:00:10]} 55. Kg1 {[%clk 0:00:08]}  Bf4 {[%clk 0:00:10]} 56. Ra2 {[%clk 0:00:08]}  h2+ {[%clk 0:00:09]} 57. Kg2 {[%clk 0:00:08]}  Re1 {[%clk 0:00:09]} 58. Kf3 {[%clk 0:00:05]}  h1=Q+ {[%clk 0:00:09]} 59. Kxf4 {[%clk 0:00:06]}  Qf1+ {[%clk 0:00:09]} 60. Kg5 {[%clk 0:00:06]}  Qg1+ {[%clk 0:00:08]} 61. Kf4 {[%clk 0:00:06]}  Re4+ {[%clk 0:00:07]} 62. Kf3 {[%clk 0:00:06]}  Qf1+ {[%clk 0:00:07]} 63. Kg3 {[%clk 0:00:06]}  Qe1+ {[%clk 0:00:06]} 64. Kf3 {[%clk 0:00:05]}  Re3+ {[%clk 0:00:05]} 65. Kf4 {[%clk 0:00:05]}  Re2 {[%clk 0:00:05]} 66. Ra3 {[%clk 0:00:03]}  Qf2+ {[%clk 0:00:05]} 67. Kg4 {[%clk 0:00:03]}  Re4+ {[%clk 0:00:04]} 68. Kh3 {[%clk 0:00:03]}  Rh4# {[%clk 0:00:04]} 0-1


[Site "https://www.chess.com"]

[Event "Titled Tuesday Blitz July 25 Late 2023"]
[White "Butolo, Alexandru-Mircea"]
[Black "Bueno, Alfeu Junior Varela"]
[WhiteFideId "1261649"]
[BlackFideId "2108879"]
[WhiteElo "1879"]
[BlackElo "2397"]
[Result "0-1"]
[Round "10"]
[TimeControl "180+2"]
[Date "2023.07.25"]
[WhiteClock "0:00:00"]
[BlackClock "0:00:04"]
[Board "89"]

1. e4 {[%clk 0:02:59]}  e6 {[%clk 0:03:00]} 2. d4 {[%clk 0:02:59]}  d5 {[%clk 0:03:00]} 3. exd5 {[%clk 0:03:00]}  exd5 {[%clk 0:03:00]} 4. Bd3 {[%clk 0:03:00]}  Nc6 {[%clk 0:03:01]} 5. c3 {[%clk 0:03:00]}  Bd6 {[%clk 0:03:00]} 6. Nf3 {[%clk 0:02:59]}  Bg4 {[%clk 0:02:59]} 7. O-O {[%clk 0:03:00]}  Qd7 {[%clk 0:02:59]} 8. Nbd2 {[%clk 0:02:50]}  h5 {[%clk 0:02:56]} 9. Qe1+ {[%clk 0:02:43]}  Nge7 {[%clk 0:02:55]} 10. Ne5 {[%clk 0:02:44]}  Nxe5 {[%clk 0:02:52]} 11. dxe5 {[%clk 0:02:45]}  Bc5 {[%clk 0:02:53]} 12. Nb3 {[%clk 0:02:40]}  Bb6 {[%clk 0:02:52]} 13. Be3 {[%clk 0:02:38]}  O-O-O {[%clk 0:02:53]} 14. a4 {[%clk 0:02:28]}  Bf5 {[%clk 0:02:45]} 15. a5 {[%clk 0:02:08]}  Bxd3 {[%clk 0:02:39]} 16. axb6 {[%clk 0:02:07]}  a6 {[%clk 0:02:39]} 17. Nc5 {[%clk 0:02:05]}  Qb5 {[%clk 0:02:38]} 18. bxc7 {[%clk 0:01:50]}  Kxc7 {[%clk 0:02:38]} 19. c4 {[%clk 0:01:44]}  dxc4 {[%clk 0:02:29]} 20. e6 {[%clk 0:01:26]}  Bxf1 {[%clk 0:02:11]} 21. exf7 {[%clk 0:01:26]}  Bd3 {[%clk 0:02:10]} 22. Bf4+ {[%clk 0:01:23]}  Kb6 {[%clk 0:02:01]} 23. Qe6+ {[%clk 0:01:06]}  Nc6 {[%clk 0:01:43]} 24. Be3 {[%clk 0:01:00]}  Qxc5 {[%clk 0:01:36]} 25. Bxc5+ {[%clk 0:00:57]}  Kxc5 {[%clk 0:01:37]} 26. Qe3+ {[%clk 0:00:51]}  Kb5 {[%clk 0:01:35]} 27. Qg5+ {[%clk 0:00:47]}  Kb6 {[%clk 0:01:30]} 28. Qe3+ {[%clk 0:00:46]}  Kc7 {[%clk 0:01:29]} 29. Qf4+ {[%clk 0:00:44]}  Kc8 {[%clk 0:01:27]} 30. Re1 {[%clk 0:00:38]}  Rhf8 {[%clk 0:01:19]} 31. Qf3 {[%clk 0:00:32]}  Bg6 {[%clk 0:01:07]} 32. Re6 {[%clk 0:00:16]}  Rxf7 {[%clk 0:01:00]} 33. Rxc6+ {[%clk 0:00:13]}  bxc6 {[%clk 0:00:49]} 34. Qxc6+ {[%clk 0:00:14]}  Rc7 {[%clk 0:00:46]} 35. Qxa6+ {[%clk 0:00:13]}  Rb7 {[%clk 0:00:42]} 36. Qc6+ {[%clk 0:00:11]}  Kb8 {[%clk 0:00:41]} 37. h3 {[%clk 0:00:10]}  Bd3 {[%clk 0:00:33]} 38. Qc5 {[%clk 0:00:05]}  Rdd7 {[%clk 0:00:18]} 39. Qxh5 {[%clk 0:00:04]}  Kc8 {[%clk 0:00:13]} 40. Qe8+ {[%clk 0:00:03]}  Kc7 {[%clk 0:00:12]} 41. Qe5+ {[%clk 0:00:03]}  Kc6 {[%clk 0:00:12]} 42. Qe6+ {[%clk 0:00:02]}  Kc5 {[%clk 0:00:08]} 43. Qe5+ {[%clk 0:00:02]}  Rd5 {[%clk 0:00:06]} 44. Qe7+ {[%clk 0:00:00]}  Rxe7 {[%clk 0:00:04]} 0-1


[Site "https://www.chess.com"]

[Event "Titled Tuesday Blitz July 25 Late 2023"]
[White "Vaglio Munoz, Jaime"]
[Black "Topalov, Aleksandar"]
[WhiteFideId "6500145"]
[BlackFideId "925659"]
[WhiteElo "2259"]
[BlackElo "2352"]
[Result "0-1"]
[Round "10"]
[TimeControl "180+2"]
[Date "2023.07.25"]
[WhiteClock "0:00:00"]
[BlackClock "0:00:54"]
[Board "93"]

1. e4 {[%clk 0:01:51]}  e6 {[%clk 0:02:43]} 2. d4 {[%clk 0:01:50]}  d5 {[%clk 0:02:43]} 3. Nc3 {[%clk 0:01:49]}  Bb4 {[%clk 0:02:42]} 4. e5 {[%clk 0:01:49]}  Qd7 {[%clk 0:02:42]} 5. Bd2 {[%clk 0:01:49]}  b6 {[%clk 0:02:41]} 6. Nce2 {[%clk 0:01:49]}  Be7 {[%clk 0:02:40]} 7. c3 {[%clk 0:01:48]}  Ba6 {[%clk 0:02:39]} 8. b4 {[%clk 0:01:47]}  h5 {[%clk 0:02:37]} 9. a4 {[%clk 0:01:46]}  Bc4 {[%clk 0:02:37]} 10. b5 {[%clk 0:01:45]}  a6 {[%clk 0:02:36]} 11. Nf4 {[%clk 0:01:45]}  Bxf1 {[%clk 0:02:35]} 12. Kxf1 {[%clk 0:01:45]}  g6 {[%clk 0:02:32]} 13. bxa6 {[%clk 0:01:40]}  Rxa6 {[%clk 0:02:30]} 14. Nge2 {[%clk 0:01:39]}  Nc6 {[%clk 0:02:26]} 15. h4 {[%clk 0:01:37]}  Nh6 {[%clk 0:02:25]} 16. Nd3 {[%clk 0:01:35]}  Nf5 {[%clk 0:02:21]} 17. g3 {[%clk 0:01:35]}  Na5 {[%clk 0:02:18]} 18. Kg2 {[%clk 0:01:34]}  Nc4 {[%clk 0:02:17]} 19. Bc1 {[%clk 0:01:32]}  b5 {[%clk 0:02:08]} 20. a5 {[%clk 0:01:28]}  Rxa5 {[%clk 0:02:06]} 21. Rxa5 {[%clk 0:01:28]}  Nxa5 {[%clk 0:02:06]} 22. Qc2 {[%clk 0:01:27]}  Nc4 {[%clk 0:02:02]} 23. Qa2 {[%clk 0:01:25]}  O-O {[%clk 0:02:00]} 24. Bg5 {[%clk 0:01:15]}  Rb8 {[%clk 0:01:47]} 25. g4 {[%clk 0:01:13]}  hxg4 {[%clk 0:01:44]} 26. Bxe7 {[%clk 0:01:11]}  Qxe7 {[%clk 0:01:43]} 27. h5 {[%clk 0:01:12]}  g5 {[%clk 0:01:39]} 28. h6 {[%clk 0:01:11]}  Kh7 {[%clk 0:01:38]} 29. Ng3 {[%clk 0:01:10]}  Nxg3 {[%clk 0:01:34]} 30. fxg3 {[%clk 0:01:11]}  Ne3+ {[%clk 0:01:28]} 31. Kf2 {[%clk 0:01:10]}  Nf5 {[%clk 0:01:26]} 32. Nc5 {[%clk 0:01:09]}  b4 {[%clk 0:01:17]} 33. Rb1 {[%clk 0:01:03]}  Qf8 {[%clk 0:01:10]} 34. Qc2 {[%clk 0:01:00]}  Qxh6 {[%clk 0:01:07]} 35. Kg1 {[%clk 0:00:53]}  Qh3 {[%clk 0:01:02]} 36. Rf1 {[%clk 0:00:50]}  Qxg3+ {[%clk 0:00:58]} 37. Kh1 {[%clk 0:00:48]}  Kg7 {[%clk 0:00:57]} 38. Rxf5 {[%clk 0:00:00]}  Rh8+ {[%clk 0:00:54]} 0-1


[Site "https://www.chess.com"]